bitfinex-derivatives/quotes_BTCF0:USTF0_20250928
["timestamp","ask_amount","ask_price","bid_price","bid_amount"]
[1759083254186,0.00787016,110200.0,110190.0,1.56625216]
[1759083254384,0.00787016,110200.0,110190.0,2.39289216]
[1759083255791,0.00787016,110200.0,110190.0,2.05283123]
[1759083255983,0.00787016,110200.0,110190.0,0.82631123]
[1759083256188,0.42985016,110200.0,110190.0,1.3129703]
[1759083256490,0.76979109,110200.0,110190.0,0.4863703]
[1759083256684,0.76979109,110200.0,110190.0,1.3129703]
[1759083257088,0.42985016,110200.0,110190.0,0.4863703]
[1759083257288,0.42985016,110200.0,110190.0,1.3129703]
[1759083257492,0.76979109,110200.0,110190.0,0.4863703]
[1759083258086,0.79109867,110200.0,110190.0,0.4863703]
[1759083258891,0.39109867,110200.0,110190.0,0.4863703]
[1759083260893,0.05115774,110200.0,110190.0,0.4863703]
[1759083261095,0.39109867,110200.0,110190.0,0.4863703]
[1759083263792,0.39109867,110200.0,110190.0,0.1255703]
[1759083264689,0.48181077,110200.0,110190.0,0.1255703]
[1759083264895,1.24261077,110200.0,110190.0,0.1255703]
[1759083265187,1.24993077,110200.0,110190.0,0.1255703]
[1759083265389,2.07589077,110200.0,110190.0,0.0907203]
[1759083268597,2.07594681,110200.0,110190.0,0.0907203]
[1759083269300,1.73600588,110200.0,110190.0,0.0907203]
[1759083269594,2.07594681,110200.0,110190.0,0.0907203]
[1759083269794,1.98495471,110200.0,110190.0,0.0907203]
[1759083270991,2.07566681,110200.0,110190.0,0.0907203]
[1759083272095,0.1117903,110190.0,110180.0,0.0907229]
[1759083272296,1.18115578,110190.0,110180.0,0.0907229]
[1759083273294,1.18415578,110190.0,110180.0,0.0907229]
[1759083273599,1.58415578,110190.0,110180.0,0.0907229]
[1759083274701,1.58715578,110190.0,110180.0,0.0907229]
[1759083278205,0.1118037,110180.0,110170.0,0.1122639]
[1759083278505,1.65974825,110180.0,110170.0,0.1122639]
[1759083278707,1.65982825,110180.0,110170.0,0.1122639]
[1759083279809,0.83490825,110180.0,110170.0,0.1122639]
[1759083280009,1.66082825,110180.0,110170.0,0.1122639]
[1759083280206,0.83490825,110180.0,110170.0,0.1122639]
[1759083280408,1.66074825,110180.0,110170.0,0.1122639]
[1759083280607,0.83490825,110180.0,110170.0,0.1122639]
[1759083280809,1.56997455,110180.0,110170.0,0.1122639]
[1759083281007,0.40423362,110180.0,110170.0,0.1260239]
[1759083281198,0.86919362,110180.0,110170.0,0.46596483]
[1759083281702,0.04343362,110180.0,110170.0,0.46596483]
[1759083282007,0.86963362,110180.0,110170.0,0.46596483]
[1759083282209,1.20945947,110180.0,110170.0,0.46584975]
[1759083282708,0.38325947,110180.0,110170.0,0.46584975]
[1759083283206,1.20937947,110180.0,110170.0,0.46584975]
[1759083283512,0.38325947,110180.0,110170.0,0.46584975]
[1759083283716,1.20937947,110180.0,110170.0,0.46584975]
[1759083295415,0.38325947,110180.0,110170.0,0.46584975]
[1759083295616,1.20897947,110180.0,110170.0,0.46584975]
[1759083296617,0.86915362,110180.0,110170.0,0.46584975]
[1759083296811,1.20897947,110180.0,110170.0,0.46584975]
[1759083300118,0.86915362,110180.0,110170.0,0.46584975]
[1759083300317,1.20897947,110180.0,110170.0,0.46584975]
[1759083300718,0.02236362,110180.0,110170.0,2.44121297]
[1759083300910,0.001,110180.0,110170.0,2.44121297]
[1759083301312,0.001,110180.0,110170.0,2.44116582]
[1759083301518,0.001,110180.0,110170.0,2.3921956]
[1759083302223,0.001,110180.0,110170.0,2.44115896]
[1759083302818,0.001,110180.0,110170.0,1.61543896]
[1759083303018,0.001,110180.0,110170.0,0.93578726]
[1759083303223,0.38424266,110180.0,110170.0,0.17498726]
[1759083303426,0.38424266,110180.0,110170.0,0.46584975]
[1759083303927,0.72406851,110180.0,110170.0,0.46584975]
[1759083305221,0.38424266,110180.0,110170.0,0.46584975]
[1759083311830,0.38424266,110180.0,110170.0,0.82664975]
[1759083313934,0.38424266,110180.0,110170.0,0.80651345]
[1759083316138,0.04441681,110180.0,110170.0,0.80651345]
[1759083316338,0.38424266,110180.0,110170.0,0.80651345]
[1759083321441,0.38424266,110180.0,110170.0,0.4666876]
[1759083321839,0.38424266,110180.0,110170.0,0.80651345]
[1759083327348,0.72406851,110180.0,110170.0,0.4666876]
[1759083327538,0.38424266,110180.0,110170.0,0.80651345]
[1759083328948,0.04441681,110180.0,110170.0,0.80651345]
[1759083329150,0.38424266,110180.0,110170.0,0.80651345]
[1759083339355,0.38424266,110180.0,110170.0,0.44571345]
[1759083339652,0.38424266,110180.0,110170.0,0.80651345]
[1759083340759,0.38433285,110180.0,110170.0,0.80651345]
[1759083342057,0.044507,110180.0,110170.0,0.80651345]
[1759083342258,0.044507,110180.0,110170.0,0.80650475]
[1759083347664,0.044507,110180.0,110170.0,0.4666876]
[1759083347866,0.044507,110180.0,110170.0,0.80650475]
[1759083349269,0.022497,110180.0,110170.0,1.20650475]
[1759083350167,0.022497,110180.0,110170.0,2.03222475]
[1759083351268,1e-07,110180.0,110170.0,2.03222475]
[1759083351574,0.02081638,110190.0,110180.0,0.1267686]
[1759083351864,0.02081638,110190.0,110180.0,0.82738575]
[1759083352463,0.89234088,110200.0,110190.0,0.1267603]
[1759083352464,1.25527803,110200.0,110190.0,0.1267603]
[1759083353172,0.75635803,110200.0,110190.0,0.1267603]
[1759083354269,0.76135803,110200.0,110190.0,0.1267603]
[1759083354872,0.40055803,110200.0,110190.0,0.1267603]
[1759083355069,0.37193715,110200.0,110190.0,0.1267603]
[1759083355372,0.03212,110200.0,110190.0,0.46657745]
[1759083355870,0.03212,110200.0,110190.0,0.82737745]
[1759083358476,0.37193715,110200.0,110190.0,0.82737745]
[1759083360277,0.03212,110200.0,110190.0,0.82737745]
[1759083363277,0.0303821,110200.0,110190.0,0.82737745]
[1759083363481,0.0303821,110200.0,110190.0,1.22737745]
[1759083363969,0.0303821,110200.0,110190.0,1.27637443]
[1759083365077,0.0303821,110200.0,110190.0,1.22737745]
[1759083366082,0.0253821,110200.0,110190.0,1.22737745]
[1759083366282,0.0263821,110200.0,110190.0,1.22737745]
[1759083366783,0.0263821,110200.0,110190.0,1.5671946]
[1759083367079,1e-07,110200.0,110190.0,1.5671946]
[1759083367279,1e-07,110200.0,110190.0,2.44179158]
[1759083368575,0.0943386,110210.0,110200.0,0.0907121]
[1759083368786,0.02134003,110220.0,110210.0,0.1046239]
[1759083368979,0.02134003,110220.0,110210.0,0.46656105]
[1759083369179,0.04446003,110220.0,110210.0,0.46656105]
[1759083369983,0.05046003,110220.0,110210.0,0.46656105]
[1759083370181,0.02734003,110220.0,110210.0,0.46656105]
[1759083370888,0.012,110220.0,110210.0,0.82736105]
[1759083371082,0.012,110220.0,110210.0,1.65292105]
[1759083372782,0.05804347,110220.0,110210.0,1.65292105]
[1759083372981,0.13214917,110220.0,110210.0,1.65292105]
[1759083373177,0.13214917,110220.0,110210.0,1.65288105]
[1759083373584,0.0861057,110220.0,110210.0,1.65288105]
[1759083373785,0.012,110220.0,110210.0,1.65288105]
[1759083373994,0.012,110220.0,110210.0,0.82736105]
[1759083374198,0.012,110220.0,110210.0,1.65288105]
[1759083374698,0.012,110220.0,110210.0,0.82736105]
[1759083374994,0.012,110220.0,110210.0,1.65288105]
[1759083375497,0.012,110220.0,110210.0,1.65284105]
[1759083376095,0.05804347,110220.0,110210.0,1.65284105]
[1759083377990,0.05804347,110220.0,110210.0,2.01364105]
[1759083378498,0.012,110220.0,110210.0,2.01364105]
[1759083378691,0.07353301,110230.0,110220.0,0.0906956]
[1759083378897,0.80504363,110250.0,110240.0,0.03424]
[1759083379093,0.77734944,110250.0,110240.0,0.03424]
[1759083379789,0.77734944,110250.0,110240.0,0.1249192]
[1759083379995,0.82189632,110250.0,110240.0,0.1249192]
[1759083380297,0.83289632,110250.0,110240.0,0.1249192]
[1759083380898,0.56738938,110250.0,110240.0,0.1249192]
[1759083381099,0.90720653,110250.0,110240.0,0.1249192]
[1759083381601,0.91920653,110250.0,110240.0,0.1249192]
[1759083383896,1.74969468,110250.0,110240.0,0.0906792]
[1759083384092,0.1243592,110240.0,110230.0,0.08966124]
[1759083384304,1.67152776,110240.0,110230.0,0.08966124]
[1759083384497,2.07152776,110240.0,110230.0,0.08966124]
[1759083384697,2.10414864,110240.0,110230.0,0.08966124]
[1759083385301,2.11414864,110240.0,110230.0,0.08966124]
[1759083386504,2.12014864,110240.0,110230.0,0.08966124]
[1759083386906,2.12014864,110240.0,110230.0,0.11104124]
[1759083390306,2.12014864,110240.0,110220.0,0.01286]
[1759083390503,2.12014864,110240.0,110210.0,0.02138]
[1759083390504,0.1269356,110220.0,110210.0,0.02138]
[1759083390704,1.67450416,110220.0,110210.0,0.02138]
[1759083391208,1.58380856,110220.0,110210.0,0.112079]
[1759083391605,1.58880856,110220.0,110210.0,0.112079]
[1759083392504,1.59280856,110220.0,110210.0,0.112079]
[1759083393406,1.59292856,110220.0,110210.0,0.112079]
[1759083393610,1.25311141,110220.0,110210.0,0.112079]
[1759083393803,1.59292856,110220.0,110210.0,0.112079]
[1759083394004,1.59292856,110220.0,110210.0,0.090699]
[1759083394005,2.42344131,110220.0,110210.0,0.090699]
[1759083395006,0.1269439,110210.0,110200.0,0.1120864]
[1759083395210,1.78154418,110210.0,110200.0,0.1120864]
[1759083396700,1.7509233,110210.0,110200.0,0.1120864]
[1759083397012,0.9247233,110210.0,110200.0,0.1120864]
[1759083397311,1.7532033,110210.0,110200.0,0.1120864]
[1759083398508,1.7532833,110210.0,110200.0,0.1120864]
[1759083399206,0.96196225,110210.0,110200.0,0.1249464]
[1759083399413,1.6625794,110210.0,110200.0,0.1249464]
[1759083400406,1.6624994,110210.0,110200.0,0.1249464]
[1759083401014,0.8360194,110210.0,110200.0,0.1249464]
[1759083401516,1.6630194,110210.0,110200.0,0.1249464]
[1759083401901,0.8360194,110210.0,110200.0,0.1249464]
[1759083402310,1.6629394,110210.0,110200.0,0.1249464]
[1759083403311,0.49620225,110210.0,110200.0,0.1249464]
[1759083403609,1.6629794,110210.0,110200.0,0.1249464]
[1759083403812,1.6638594,110210.0,110200.0,0.1249464]
[1759083404218,1.66375527,110210.0,110200.0,0.1249464]
[1759083406016,1.66375527,110210.0,110200.0,0.1120864]
[1759083407308,0.83591527,110210.0,110200.0,0.1120864]
[1759083407504,1.66379527,110210.0,110200.0,0.1120864]
[1759083408417,1.66411527,110210.0,110200.0,0.1120864]
[1759083408916,0.96348225,110210.0,110200.0,0.1258664]
[1759083409215,1.30319527,110210.0,110200.0,0.1258664]
[1759083409417,1.30319527,110210.0,110200.0,0.46557942]
[1759083409611,1.30319527,110210.0,110200.0,0.1258664]
[1759083410009,1.66399527,110210.0,110200.0,0.1258664]
[1759083410513,1.66399527,110210.0,110200.0,0.46557942]
[1759083411318,1.30319527,110210.0,110200.0,0.46557942]
[1759083411822,0.47511527,110210.0,110200.0,0.46557942]
[1759083412012,1.30323527,110210.0,110200.0,0.46557942]
[1759083412418,0.96352225,110210.0,110200.0,0.46557942]
[1759083412618,1.30323527,110210.0,110200.0,0.46557942]
[1759083416523,1.30323527,110210.0,110200.0,0.1258664]
[1759083417020,1.30323527,110210.0,110200.0,0.1120864]
[1759083419024,0.96352225,110210.0,110200.0,0.1258664]
[1759083419220,1.30323527,110210.0,110200.0,0.1258664]
[1759083421221,1.39393917,110210.0,110200.0,0.1120864]
[1759083421428,1.75473917,110210.0,110200.0,0.1120864]
[1759083422123,1.66403527,110210.0,110200.0,0.1120864]
[1759083422324,1.32432225,110210.0,110200.0,0.1120864]
[1759083422527,1.66403527,110210.0,110200.0,0.1120864]
[1759083426027,0.48292225,110210.0,110200.0,0.46557942]
[1759083426328,0.12212225,110210.0,110200.0,0.4866664]
[1759083426627,0.12212225,110210.0,110200.0,1.16609244]
[1759083426829,0.09916225,110210.0,110200.0,1.56609244]
[1759083427127,0.09916225,110210.0,110200.0,1.61508942]
[1759083433536,0.09916225,110210.0,110200.0,1.25428942]
[1759083433742,0.02515141,110210.0,110200.0,1.95480244]
[1759083434036,1e-07,110210.0,110200.0,1.95480244]
[1759083435037,1e-07,110210.0,110200.0,1.90580546]
[1759083435336,1e-07,110210.0,110200.0,1.95473022]
[1759083435538,0.42038,110230.0,110220.0,0.1257456]
[1759083435739,0.42038,110230.0,110220.0,0.80517164]
[1759083436545,0.02142,110230.0,110220.0,0.80517164]
[1759083436936,0.02542,110230.0,110220.0,0.80517164]
[1759083437240,0.02942,110230.0,110220.0,0.80517164]
[1759083440155,0.008,110230.0,110220.0,0.80517164]
[1759083440452,0.008,110230.0,110220.0,1.56597164]
[1759083442255,0.008,110230.0,110220.0,2.39301164]
[1759083443058,0.008,110230.0,110220.0,1.7135856]
[1759083443255,0.008,110230.0,110220.0,2.39301164]
[1759083445148,0.008,110230.0,110220.0,1.56597164]
[1759083445351,0.008,110230.0,110220.0,2.39289164]
[1759083446058,0.02904415,110230.0,110220.0,2.39289164]
[1759083447550,0.02904415,110230.0,110220.0,1.56597164]
[1759083447755,0.02904415,110230.0,110220.0,2.39257164]
[1759083448968,0.02904415,110230.0,110220.0,1.56597164]
[1759083449660,0.02904415,110230.0,110220.0,0.8865456]
[1759083449859,0.02904415,110230.0,110220.0,2.39325164]
[1759083452364,0.02504415,110230.0,110220.0,2.39525164]
[1759083452661,0.02104415,110230.0,110220.0,2.39525164]
[1759083453064,0.02104415,110230.0,110220.0,2.39325164]
[1759083453265,0.02204415,110230.0,110220.0,2.39325164]
[1759083454267,0.02404415,110230.0,110220.0,2.39325164]
[1759083454458,0.02404415,110230.0,110220.0,2.39377164]
[1759083455162,0.02405942,110230.0,110220.0,1.56597164]
[1759083455367,0.02405942,110230.0,110220.0,2.39425164]
[1759083456056,0.02405942,110230.0,110220.0,1.56597164]
[1759083456057,0.003,110230.0,110220.0,1.56597164]
[1759083456267,0.003,110230.0,110220.0,2.39417164]
[1759083458470,0.85415122,110240.0,110230.0,0.1255774]
[1759083458778,0.85415122,110240.0,110230.0,0.46529042]
[1759083459772,0.76347192,110240.0,110230.0,0.46529042]
[1759083460160,0.76747192,110240.0,110230.0,0.46529042]
[1759083460674,0.77147192,110240.0,110230.0,0.46529042]
[1759083461175,1.61241414,110240.0,110230.0,0.1127074]
[1759083461367,0.1224874,110230.0,110220.0,0.02202]
[1759083461562,0.1224874,110230.0,110210.0,0.30527]
[1759083461563,0.03386,110220.0,110210.0,0.30527]
[1759083461768,0.73435372,110220.0,110210.0,0.30527]
[1759083462572,0.73435372,110220.0,110210.0,0.64498302]
[1759083463375,0.73435372,110220.0,110210.0,0.64698302]
[1759083463674,0.3946407,110220.0,110210.0,0.46778302]
[1759083464171,0.3946407,110220.0,110210.0,0.12807]
[1759083464376,0.39456293,110220.0,110210.0,0.12807]
[1759083465371,0.79456293,110220.0,110210.0,0.12807]
[1759083465581,0.79456293,110220.0,110210.0,0.11472]
[1759083465773,1.15536293,110220.0,110210.0,0.11472]
[1759083468676,1.98352293,110220.0,110210.0,0.11472]
[1759083468878,1.15536293,110220.0,110210.0,0.11472]
[1759083469077,1.98352293,110220.0,110210.0,0.11472]
[1759083469281,1.98344293,110220.0,110210.0,0.11472]
[1759083472578,1.98316293,110220.0,110210.0,0.11472]
[1759083473775,0.04214768,110220.0,110210.0,0.46761525]
[1759083476980,0.04214768,110220.0,110210.0,0.12798]
[1759083477184,0.04214768,110220.0,110210.0,0.46761525]
[1759083477982,0.04214768,110220.0,110210.0,0.82841525]
[1759083482284,8e-08,110220.0,110210.0,1.22841525]
[1759083482484,1.21013,110240.0,110230.0,0.1262974]
[1759083482785,0.38265,110240.0,110230.0,0.46593265]
[1759083482986,1.21037,110240.0,110230.0,0.46593265]
[1759083483988,0.02585,110240.0,110230.0,0.46593265]
[1759083484186,0.85357,110240.0,110230.0,0.46593265]
[1759083484389,0.85757,110240.0,110230.0,0.1262974]
[1759083484586,0.85757,110240.0,110230.0,0.46593265]
[1759083485589,0.85777,110240.0,110230.0,0.46593265]
[1759083486484,0.85577,110240.0,110230.0,0.46593265]
[1759083487692,0.85177,110240.0,110230.0,0.46593265]
[1759083487887,0.85277,110240.0,110230.0,0.46593265]
[1759083489192,0.02485,110240.0,110230.0,0.46593265]
[1759083489385,0.85265,110240.0,110230.0,0.46593265]
[1759083491396,0.02485,110240.0,110230.0,0.46593265]
[1759083491596,0.85289,110240.0,110230.0,0.46593265]
[1759083494297,0.87388206,110240.0,110230.0,0.46593265]
[1759083496701,0.04584206,110240.0,110230.0,0.46593265]
[1759083497102,0.87340206,110240.0,110230.0,0.46593265]
[1759083501907,0.87340206,110240.0,110230.0,0.82673265]
[1759083505820,0.87276206,110240.0,110230.0,0.82673265]
[1759083507915,0.87276206,110240.0,110230.0,0.4870974]
[1759083508113,0.87276206,110240.0,110230.0,0.82673265]
[1759083508511,0.87288206,110240.0,110230.0,0.82673265]
[1759083509014,0.87288274,110240.0,110230.0,0.82673265]
[1759083509814,0.89404622,110240.0,110230.0,0.4870974]
[1759083510020,0.89404622,110240.0,110230.0,0.1262974]
[1759083510021,1.24646147,110240.0,110230.0,0.1262974]
[1759083510606,2.00726147,110240.0,110230.0,0.0906874]
[1759083515410,2.09794067,110240.0,110230.0,0.0906874]
[1759083518323,2.09794067,110240.0,110230.0,0.1121374]
[1759083519221,1.27090067,110240.0,110230.0,0.1121374]
[1759083519415,1.69902067,110240.0,110230.0,0.1121374]
[1759083520410,1.69902067,110240.0,110230.0,0.0906874]
[1759083520614,1.73164155,110240.0,110230.0,0.0906874]
[1759083523314,1.69902067,110240.0,110230.0,0.0906874]
[1759083524216,0.1130674,110230.0,110220.0,0.1254012]
[1759083524416,0.1130674,110230.0,110220.0,0.1121412]
[1759083524417,0.84720926,110230.0,110220.0,0.1121412]
[1759083525424,0.84720926,110230.0,110220.0,0.1141412]
[1759083528632,1.67472926,110230.0,110220.0,0.1141412]
[1759083532028,0.84720926,110230.0,110220.0,0.1141412]
[1759083532233,0.87045274,110230.0,110220.0,0.80618944]
[1759083533132,0.04337274,110230.0,110220.0,0.80618944]
[1759083533332,0.87117274,110230.0,110220.0,0.80618944]
[1759083533632,0.87117274,110230.0,110220.0,0.1270512]
[1759083533832,0.87117274,110230.0,110220.0,0.80618944]
[1759083534230,0.04337274,110230.0,110220.0,0.80618944]
[1759083534430,0.87109274,110230.0,110220.0,0.80618944]
[1759083535638,0.04337274,110230.0,110220.0,0.80618944]
[1759083535936,0.87101274,110230.0,110220.0,0.80618944]
[1759083536134,0.04337274,110230.0,110220.0,0.80618944]
[1759083540239,0.38294186,110230.0,110220.0,0.46662032]
[1759083544042,0.02099274,110230.0,110220.0,1.56698944]
[1759083544239,1.57055051,110240.0,110230.0,0.1251774]
[1759083544443,1.57055051,110240.0,110230.0,0.46474652]
[1759083544744,1.20975051,110240.0,110230.0,0.46474652]
[1759083545432,1.21275051,110240.0,110230.0,0.46474652]
[1759083548449,2.01657883,110240.0,110230.0,0.1122674]
[1759083548752,2.03776965,110240.0,110230.0,0.0906874]
[1759083549652,2.03776965,110240.0,110230.0,0.1122674]
[1759083557654,1.67696965,110240.0,110230.0,0.1122674]
[1759083557954,2.03776965,110240.0,110230.0,0.1122674]
[1759083561665,2.03716965,110240.0,110230.0,0.1122674]
[1759083564164,0.53183141,110240.0,110230.0,0.1122674]
[1759083564461,2.03716965,110240.0,110230.0,0.1122674]
[1759083565160,2.06979053,110240.0,110230.0,0.1122674]
[1759083568364,1.70899053,110240.0,110230.0,0.1122674]
[1759083568565,2.06979053,110240.0,110230.0,0.1122674]
[1759083569175,2.06979754,110240.0,110230.0,0.1122674]
[1759083573265,1.70899754,110240.0,110230.0,0.1122674]
[1759083573471,2.06979754,110240.0,110230.0,0.1122674]
[1759083575679,1.3906593,110240.0,110230.0,0.1122674]
[1759083575870,2.06979754,110240.0,110230.0,0.1122674]
[1759083576071,2.11864314,110240.0,110230.0,0.1122674]
[1759083578079,2.11864314,110240.0,110230.0,0.0906874]
[1759083583584,2.08602226,110240.0,110230.0,0.0906874]
[1759083584176,0.14906407,110240.0,110230.0,0.46462652]
[1759083584480,0.10021847,110240.0,110230.0,0.46462652]
[1759083584681,0.92637847,110240.0,110230.0,0.46462652]
[1759083584983,0.92637847,110240.0,110230.0,0.86462652]
[1759083584984,0.10021847,110240.0,110230.0,0.86462652]
[1759083585288,0.89373922,110240.0,110230.0,0.86462652]
[1759083586282,0.89373922,110240.0,110230.0,0.86447755]
[1759083587780,0.06757922,110240.0,110230.0,0.86447755]
[1759083587980,0.89373922,110240.0,110230.0,0.86447755]
[1759083588180,0.06757922,110240.0,110230.0,0.86447755]
[1759083588380,0.89373922,110240.0,110230.0,0.86447755]
[1759083591083,0.89373922,110240.0,110230.0,0.5250574]
[1759083591283,0.89373922,110240.0,110230.0,0.86447755]
[1759083591483,0.89273922,110240.0,110230.0,0.86447755]
[1759083591686,0.89273922,110240.0,110230.0,0.86547755]
[1759083591687,0.04421922,110240.0,110230.0,0.86547755]
[1759083591886,0.04421922,110240.0,110230.0,1.22627755]
[1759083592089,0.04221922,110240.0,110230.0,1.27520231]
[1759083592788,0.04421922,110240.0,110230.0,1.27520231]
[1759083593191,0.04221922,110240.0,110230.0,1.27520231]
[1759083593398,0.04221922,110240.0,110230.0,1.27420231]
[1759083593688,0.04421922,110240.0,110230.0,1.27420231]
[1759083594290,0.04221922,110240.0,110230.0,1.27520231]
[1759083595185,0.04221922,110240.0,110230.0,1.22627755]
[1759083596993,0.04221922,110240.0,110230.0,0.86547755]
[1759083597194,0.04221922,110240.0,110230.0,1.22627755]
[1759083597694,0.04221922,110240.0,110230.0,1.42627755]
[1759083602797,0.04221922,110240.0,110230.0,2.25231755]
[1759083609100,0.04221922,110240.0,110230.0,2.30124231]
[1759083610293,0.04221922,110240.0,110230.0,1.13578216]
[1759083610497,0.40337937,110240.0,110230.0,1.1520174]
[1759083610699,1.26550857,110240.0,110230.0,0.3129574]
[1759083611096,1.17482937,110240.0,110230.0,0.3129574]
[1759083616401,2.00078937,110240.0,110230.0,0.3129574]
[1759083617201,1.97959855,110240.0,110230.0,0.3129574]
[1759083618102,1.15363855,110240.0,110230.0,0.3129574]
[1759083618302,1.97959855,110240.0,110230.0,0.3129574]
[1759083619699,1.15363855,110240.0,110230.0,0.3129574]
[1759083619906,1.61875855,110240.0,110230.0,0.3129574]
[1759083622710,0.79283855,110240.0,110230.0,0.3129574]
[1759083623109,1.61875855,110240.0,110230.0,0.3129574]
[1759083625809,1.61871855,110240.0,110230.0,0.3129574]
[1759083626709,0.79283855,110240.0,110230.0,0.3129574]
[1759083627011,1.61871855,110240.0,110230.0,0.3129574]
[1759083627410,1.61863615,110240.0,110230.0,0.3129574]
[1759083630211,1.60798615,110240.0,110230.0,0.3129574]
[1759083630415,0.042686,110240.0,110230.0,0.66515755]
[1759083630608,0.868526,110240.0,110230.0,1.02595755]
[1759083632912,0.042686,110240.0,110230.0,1.02595755]
[1759083633213,0.868526,110240.0,110230.0,1.02595755]
[1759083634414,0.042686,110240.0,110230.0,1.02595755]
[1759083634606,0.868526,110240.0,110230.0,1.02595755]
[1759083634807,0.042686,110240.0,110230.0,1.02595755]
[1759083635008,0.868486,110240.0,110230.0,1.02595755]
[1759083636618,0.042686,110240.0,110230.0,1.02595755]
[1759083636817,0.868486,110240.0,110230.0,1.02595755]
[1759083637017,0.868486,110240.0,110230.0,1.07488231]
[1759083638719,0.868486,110240.0,110230.0,0.73546216]
[1759083639017,0.868486,110240.0,110230.0,0.66515755]
[1759083639224,0.868486,110240.0,110230.0,0.71408231]
[1759083639518,0.868486,110240.0,110230.0,0.37466216]
[1759083639718,1.20790615,110240.0,110230.0,0.37466216]
[1759083643927,1.20786615,110240.0,110230.0,0.37466216]
[1759083644231,1.20786615,110240.0,110230.0,0.3257374]
[1759083645322,1.20786615,110240.0,110230.0,0.37466216]
[1759083646925,0.38210615,110240.0,110230.0,0.73546216]
[1759083647126,0.868406,110240.0,110230.0,1.07488231]
[1759083648227,1.20788618,110240.0,110230.0,1.07494234]
[1759083648628,0.38216618,110240.0,110230.0,1.07494234]
[1759083648834,1.20784618,110240.0,110230.0,1.07494234]
[1759083649323,0.868366,110240.0,110230.0,1.07494234]
[1759083649526,1.20784618,110240.0,110230.0,1.07494234]
[1759083653631,0.042686,110240.0,110230.0,1.07494234]
[1759083653933,0.868326,110240.0,110230.0,1.07494234]
[1759083654437,1.20780618,110240.0,110230.0,1.07494234]
[1759083665264,1.20780618,110240.0,110230.0,1.02601758]
[1759083666260,1.20780618,110240.0,110230.0,0.6865374]
[1759083666463,1.20780618,110240.0,110230.0,1.02601758]
[1759083670151,0.868326,110240.0,110230.0,1.02601758]
[1759083670356,1.20780618,110240.0,110230.0,1.02601758]
[1759083675164,0.868326,110240.0,110230.0,1.07494234]
[1759083675365,1.20780618,110240.0,110230.0,1.07494234]
[1759083683970,0.38216618,110240.0,110230.0,1.07494234]
[1759083684265,1.20744618,110240.0,110230.0,1.07494234]
[1759083684459,0.042686,110240.0,110230.0,1.07494234]
[1759083684659,0.867966,110240.0,110230.0,1.07494234]
[1759083685568,1.20744618,110240.0,110230.0,1.07494234]
[1759083686168,0.042686,110240.0,110230.0,1.07494234]
[1759083686370,0.797566,110240.0,110230.0,1.07494234]
[1759083686671,1.13704618,110240.0,110230.0,1.07494234]
[1759083686857,0.797566,110240.0,110230.0,1.07494234]
[1759083687062,0.867926,110240.0,110230.0,1.07494234]
[1759083687365,0.020946,110240.0,110230.0,1.07494234]
[1759083687561,0.846186,110240.0,110230.0,1.07494234]
[1759083688058,0.84618334,110240.0,110230.0,1.07494234]
[1759083688870,0.02094334,110240.0,110230.0,1.07494234]
[1759083689076,0.84618334,110240.0,110230.0,1.07494234]
[1759083689270,0.02094334,110240.0,110230.0,1.07494234]
[1759083699975,0.02094334,110240.0,110230.0,1.90010234]
[1759083701181,0.02094334,110240.0,110230.0,1.07494234]
[1759083701580,0.02094334,110240.0,110230.0,1.90006234]
[1759083704287,0.02094334,110240.0,110230.0,1.07494234]
[1759083704486,0.02094334,110240.0,110230.0,1.90006234]
[1759083705188,0.02094334,110240.0,110230.0,1.85113758]
[1759083710192,0.02094334,110240.0,110230.0,1.85109989]
[1759083715202,0.02094334,110240.0,110230.0,1.90002465]
[1759083716204,0.02094334,110240.0,110230.0,1.56058216]
[1759083716397,0.02094334,110240.0,110230.0,1.90002465]
[1759083717607,0.02094334,110240.0,110230.0,0.73546216]
[1759083717803,0.02094334,110240.0,110230.0,1.89990465]
[1759083724208,0.02094334,110240.0,110230.0,1.56046216]
[1759083724409,0.02094334,110240.0,110230.0,1.89990465]
[1759083731219,0.02094334,110240.0,110230.0,2.26070465]
[1759083731814,0.02094334,110240.0,110230.0,2.66070465]
[1759083732422,4e-08,110240.0,110230.0,2.61177989]
[1759083733014,0.11885709,110250.0,110240.0,0.1044686]
[1759083733220,0.34664,110260.0,110250.0,0.1258504]
[1759083733221,0.36797,110260.0,110250.0,0.1258504]
[1759083733421,0.36797,110260.0,110250.0,0.46529289]
[1759083734923,0.38643849,110260.0,110250.0,0.46529289]
[1759083735227,0.72788098,110260.0,110250.0,0.1258504]
[1759083735618,0.72988098,110260.0,110250.0,0.1258504]
[1759083736626,0.38324098,110260.0,110250.0,0.1258504]
[1759083736819,0.04379849,110260.0,110250.0,0.1258504]
[1759083737322,0.38324098,110260.0,110250.0,0.1258504]
[1759083737625,0.04379849,110260.0,110250.0,0.1258504]
[1759083738026,0.04379849,110260.0,110250.0,0.46529289]
[1759083738325,0.11742764,110260.0,110250.0,0.46529289]
[1759083738527,0.02533,110260.0,110250.0,0.46529289]
[1759083740630,0.02533,110260.0,110250.0,0.1258504]
[1759083741935,0.04389465,110260.0,110250.0,0.1258504]
[1759083742132,0.04389465,110260.0,110250.0,0.46529289]
[1759083742731,0.11577596,110260.0,110250.0,0.46529289]
[1759083742925,0.02533,110260.0,110250.0,0.46529289]
[1759083744336,0.04606361,110260.0,110250.0,0.46529289]
[1759083745135,0.04406361,110260.0,110250.0,0.46629289]
[1759083745434,0.04206361,110260.0,110250.0,0.46629289]
[1759083746023,0.11574341,110260.0,110250.0,0.46629289]
[1759083746937,0.13389556,110260.0,110250.0,0.46629289]
[1759083762142,0.13389556,110260.0,110250.0,0.1268504]
[1759083762346,0.13389556,110260.0,110250.0,0.46629289]
[1759083764750,0.13389556,110260.0,110250.0,0.82709289]
[1759083765447,0.13389556,110260.0,110250.0,0.87606089]
[1759083770747,0.13389556,110260.0,110250.0,0.5366184]
[1759083770939,0.13389556,110260.0,110250.0,0.87606089]
[1759083772246,0.47322973,110260.0,110250.0,0.87595257]
[1759083773243,0.13389556,110260.0,110250.0,0.87595257]
[1759083773450,0.47322973,110260.0,110250.0,0.87595257]
[1759083779256,0.13389556,110260.0,110250.0,0.87595257]
[1759083779455,0.47322973,110260.0,110250.0,0.87595257]
[1759083785461,0.45249612,110260.0,110250.0,0.87595257]
[1759083785759,0.47329204,110260.0,110250.0,0.87595257]
[1759083787059,0.47329204,110260.0,110250.0,0.51515257]
[1759083787260,0.47329204,110260.0,110250.0,0.87595257]
[1759083788159,0.13395787,110260.0,110250.0,0.87595257]
[1759083788360,0.47329204,110260.0,110250.0,0.87595257]
[1759083795157,0.47329204,110260.0,110250.0,0.82698457]
[1759083797964,0.13395787,110260.0,110250.0,0.82698457]
[1759083798166,0.47329204,110260.0,110250.0,0.82698457]
[1759083804566,0.13395787,110260.0,110250.0,0.82698457]
[1759083804767,0.47329204,110260.0,110250.0,0.82698457]